bitfinex/quotes_SOLUSD_20260117
["timestamp","ask_amount","ask_price","bid_price","bid_amount"]
[1768654076480,2.00726425,143.69,143.67,1.95206382]
[1768654077491,4.09072446,143.7,143.67,1.95206382]
[1768654077991,2.08346021,143.7,143.67,1.95206382]
[1768654078195,2.00726425,143.69,143.67,1.95206382]
[1768654078892,2.00726425,143.69,143.66,8.91261832]
[1768654079804,2.00726425,143.68,143.65,24.15330643]
[1768654080003,4.09072446,143.68,143.65,24.15330643]
[1768654080998,4.09072446,143.68,143.66,1.95206382]
[1768654081928,2.00726425,143.68,143.66,1.95206382]
[1768654091918,2.00726425,143.68,143.66,8.91280109]
[1768654127150,9.04231482,143.71,143.67,1.95639006]
[1768654127330,7.08429761,143.7,143.67,1.95639006]
[1768654127531,1.87522324,143.7,143.67,1.95639006]
[1768654127751,1.87522324,143.73,143.67,1.95639006]
[1768654128047,1.87522324,143.73,143.69,4.04005274]
[1768654128220,1.87522324,143.73,143.69,1.95639006]
[1768654128921,1.87522324,143.73,143.69,8.91544028]
[1768654134249,1.87030105,143.74,143.71,1.97401977]
[1768654135641,1.87030105,143.74,143.71,8.93206448]
[1768654139058,1.87030105,143.74,143.71,11.01572716]
[1768654144253,1.87030105,143.74,143.71,8.93206448]
[1768654156149,1.87030105,143.75,143.72,1.97401977]
[1768654156368,1.87030105,143.75,143.71,8.93206448]
[1768654156761,1.87030105,143.75,143.72,1.97401977]
[1768654158269,1.87030105,143.75,143.71,11.01572716]
[1768654158450,1.87030105,143.75,143.71,8.93206448]
[1768654159870,1.87030105,143.75,143.72,1.97401977]
[1768654160173,1.87030105,143.76,143.72,1.97401977]
[1768654161771,1.87030105,143.76,143.73,6.95748973]
[1768654162764,1.93133162,143.77,143.74,1.89055027]
[1768654163853,1.93133162,143.77,143.74,8.84743313]
[1768654165691,4.0149943,143.77,143.74,8.84743313]
[1768654165985,1.93133162,143.76,143.72,24.08820966]
[1768654166273,1.93133162,143.76,143.73,6.95735529]
[1768654166877,1.93133162,143.76,143.73,8.84790556]
[1768654170772,1.93133162,143.77,143.74,1.89055027]
[1768654172259,1.86980398,143.74,143.71,6.95816343]
[1768654172473,0.78140326,143.74,143.71,8.85865128]
[1768654172777,9.04007447,143.76,143.72,1.90048785]
[1768654173359,9.03930953,143.77,143.72,1.90048785]
[1768654173560,5.19650656,143.76,143.72,1.90048785]
[1768654173864,2.08366268,143.77,143.72,1.90048785]
[1768654174063,5.19652172,143.76,143.72,1.90048785]
[1768654174386,1.86980398,143.77,143.72,1.90048785]
[1768654174689,7.06694736,143.76,143.73,8.85797758]
[1768654174879,5.19695963,143.75,143.73,8.85797758]
[1768654175077,1.86980398,143.76,143.73,8.85797758]
[1768654179294,1.86980398,143.76,143.73,8.79797758]
[1768654180288,8.82567421,143.77,143.74,1.90048785]
[1768654180486,7.07044945,143.76,143.73,3.98193233]
[1768654180791,1.86980398,143.76,143.73,3.98193233]
[1768654181970,1.86980398,143.76,143.73,8.85792191]
[1768654182588,1.96980398,143.78,143.74,1.90048785]
[1768654182780,5.20085599,143.77,143.74,1.84048785]
[1768654182973,5.20085599,143.76,143.74,1.84048785]
[1768654183288,1.96980398,143.78,143.74,3.92193233]
[1768654183597,5.20074848,143.77,143.74,3.92193233]
[1768654183893,8.92491123,143.78,143.74,3.92193233]
[1768654184281,5.20062759,143.77,143.74,10.87885138]
[1768654184485,8.92491123,143.78,143.74,10.87885138]
[1768654184789,5.2005591,143.77,143.74,10.87885138]
[1768654184993,8.92491123,143.78,143.74,10.87885138]
[1768654185195,5.20055783,143.77,143.74,10.87885138]
[1768654185490,8.92491123,143.78,143.74,10.87885138]
[1768654185693,5.20050124,143.77,143.74,10.87885138]
[1768654185878,8.92491123,143.78,143.74,9.03836353]
[1768654186079,5.20050124,143.77,143.75,1.83948716]
[1768654186292,8.92491123,143.78,143.75,1.83948716]
[1768654186496,5.20057719,143.77,143.75,1.83948716]
[1768654186796,8.92491123,143.78,143.75,1.83948716]
[1768654186970,5.20057719,143.77,143.75,1.83948716]
[1768654187168,8.92491123,143.78,143.75,1.83948716]
[1768654187468,5.20057592,143.77,143.75,1.83948716]
[1768654187669,8.92491123,143.78,143.75,1.83948716]
[1768654187866,5.20067923,143.77,143.75,1.83948716]
[1768654188092,8.92491123,143.78,143.75,1.83948716]
[1768654188293,5.20067923,143.77,143.75,1.83948716]
[1768654188592,8.92491123,143.78,143.75,1.83948716]
[1768654189391,8.92491123,143.78,143.75,3.92093164]
[1768654190197,1.96980398,143.78,143.75,10.87730397]
[1768654201778,1.99433205,143.77,143.72,19.14701491]
[1768654202391,1.99433205,143.75,143.72,26.10493808]
[1768654203411,1.99433205,143.75,143.73,2.08144448]
[1768654204610,1.99433205,143.75,143.72,26.10493808]
[1768654209536,1.99433205,143.75,143.72,10.86493808]
[1768654210607,1.99433205,143.75,143.72,6.95792317]
[1768654210798,1.99433205,143.74,143.71,6.95824742]
[1768654211309,1.99433205,143.74,143.71,9.0396919]
[1768654213813,1.99433205,143.74,143.71,6.95824742]
[1768654214618,1.99433205,143.74,143.71,9.0396919]
[1768654216018,1.96433206,143.74,143.71,9.0396919]
[1768654218921,1.96433206,143.74,143.71,6.95824742]
[1768654219233,1.99433205,143.73,143.69,3.92573271]
[1768654220010,1.99433205,143.73,143.69,8.8035931]
[1768654220508,1.99433205,143.72,143.69,8.8035931]
[1768654220707,1.96433205,143.72,143.69,8.8035931]
[1768654221519,1.96433205,143.72,143.69,10.88503758]
[1768654222221,1.96433205,143.72,143.69,8.8035931]
[1768654222618,1.96433205,143.72,143.69,10.88503758]
[1768654223326,1.93433206,143.72,143.69,10.88503758]
[1768654225828,1.93433206,143.72,143.69,8.8035931]
[1768654226332,1.93433206,143.72,143.69,6.95930487]
[1768654226923,1.93433206,143.72,143.69,8.85895145]
[1768654227624,1.93433206,143.72,143.69,6.95930487]
[1768654227827,1.93433206,143.72,143.68,24.09901586]
[1768654227828,1.97618505,143.71,143.68,24.09901586]
[1768654228199,1.97618505,143.71,143.68,8.85901586]
[1768654230226,1.94618506,143.71,143.68,8.85901586]
[1768654230436,1.94618506,143.71,143.68,10.94046034]
[1768654237040,1.91618507,143.71,143.68,10.94046034]
[1768654239341,1.91618507,143.71,143.68,10.9413574]
[1768654240235,1.98983783,143.72,143.69,1.93532131]
[1768654241338,1.98983783,143.72,143.7,6.95894224]
[1768654249627,1.98983783,143.72,143.69,8.89457178]
[1768654270671,1.98983783,143.72,143.69,10.97691332]
[1768654278677,1.99450684,143.74,143.7,1.94360095]
[1768654278867,1.99450684,143.75,143.72,1.94360095]
[1768654280564,1.99450684,143.75,143.71,9.04036316]
[1768654280565,1.99450684,143.75,143.71,10.98354399]
[1768654281355,1.99450684,143.75,143.72,6.95796551]
[1768654284060,1.99450684,143.75,143.71,6.95826257]
[1768654285772,1.87477477,143.74,143.71,6.95826257]
[1768654285964,1.87477477,143.74,143.7,6.95884944]
[1768654286282,1.87477477,143.71,143.68,1.94197717]
[1768654286584,1.87477477,143.71,143.67,1.94178454]
[1768654287166,1.87477477,143.7,143.67,10.98420932]
[1768654288287,1.87477477,143.7,143.67,8.90186778]
[1768654289586,1.87477477,143.69,143.66,26.22429793]
[1768654289771,1.84477478,143.69,143.66,26.22429793]
[1768654292110,1.84477478,143.69,143.66,24.14195639]
[1768654292991,1.81477479,143.69,143.66,24.14195639]
[1768654294277,1.7847748,143.69,143.66,24.14195639]
[1768654304001,1.7847748,143.69,143.66,8.90195639]
[1768654305998,17.39563608,143.72,143.68,1.92867956]
[1768654305999,1.85372738,143.72,143.68,1.92867956]
[1768654308302,1.85372738,143.72,143.69,6.95942654]
[1768654308488,1.85372738,143.72,143.69,8.8881061]
[1768654309703,8.81134301,143.73,143.7,1.92867956]
[1768654310310,1.85372738,143.72,143.7,1.92867956]
[1768654310487,1.85372738,143.72,143.69,8.8881061]
[1768654313612,1.85372738,143.72,143.7,1.99850499]
[1768654314114,1.91815016,143.73,143.7,1.99850499]
[1768654315109,8.87580562,143.73,143.7,1.99850499]
[1768654316310,1.91815016,143.73,143.7,8.95735854]
[1768654318708,1.91815016,143.73,143.71,1.99850499]
[1768654320919,1.91815016,143.75,143.72,1.99850499]
[1768654321214,51.69094929,143.77,143.72,1.99850499]
[1768654321215,1.91815016,143.76,143.72,1.99850499]
[1768654322290,1.91815016,143.74,143.71,8.95695145]
[1768654325814,1.91815016,143.74,143.71,1.99850499]
[1768654326113,1.91815016,143.74,143.7,8.95726732]
[1768654330414,1.91815016,143.73,143.66,22.73297358]
[1768654330601,1.91815016,143.68,143.64,3.62925605]
[1768654330919,1.88815017,143.68,143.65,1.99850499]
[1768654331507,1.88815017,143.68,143.66,6.9606987]
[1768654333104,3.97145328,143.68,143.66,6.9606987]
[1768654335419,1.88815017,143.68,143.66,6.9606987]
[1768654335719,3.97145328,143.68,143.66,6.9606987]
[1768654336130,1.88815017,143.68,143.66,6.9606987]
[1768654336423,3.97145328,143.68,143.66,6.9606987]
[1768654336610,1.91815016,143.69,143.66,1.99850499]
[1768654336814,4.00145327,143.7,143.66,1.99850499]
[1768654338721,4.00145327,143.7,143.67,1.99850499]
[1768654341221,1.91815016,143.7,143.67,1.99850499]
[1768654341935,1.91815016,143.7,143.68,1.92032907]
[1768654347026,1.91815016,143.7,143.69,15.24]
[1768654349332,4.00145327,143.7,143.69,15.24]
[1768654350425,1.91815016,143.7,143.69,15.24]
[1768654351621,4.00145327,143.7,143.69,15.24]
[1768654352332,4.00145327,143.7,143.68,1.92032907]
[1768654352518,1.93771406,143.68,143.65,2.00045956]
[1768654352834,2.08330311,143.67,143.64,64.40045956]
[1768654353014,2.08330311,143.67,143.64,2.00045956]
[1768654353414,2.08330311,143.67,143.64,8.96202685]
[1768654354239,2.08330311,143.68,143.64,8.96202685]
[1768654354737,4.02101717,143.68,143.64,8.96202685]
[1768654356546,1.93771406,143.67,143.64,8.96202685]
[1768654358046,1.93771406,143.67,143.64,6.96156729]
[1768654358225,1.93771406,143.67,143.65,2.00045956]
[1768654358946,1.93771406,143.67,143.65,8.96159526]
[1768654359327,1.90771407,143.67,143.65,8.96159526]
[1768654364245,1.87771408,143.67,143.65,8.96159526]
[1768654364641,9.04337565,143.69,143.65,8.96159526]
[1768654365743,6.95958656,143.69,143.65,8.96159526]
[1768654365941,2.08378909,143.68,143.65,8.96159526]
[1768654366333,4.02150315,143.68,143.65,8.96159526]
[1768654372951,2.08378909,143.68,143.66,1.97305513]
[1768654373152,1.94548527,143.69,143.66,1.97305513]
[1768654373745,2.08378909,143.7,143.66,1.97305513]
[1768654373746,4.02927436,143.7,143.66,1.97305513]
[1768654373949,4.02927436,143.7,143.67,8.93345048]
[1768654380067,2.08378909,143.69,143.67,8.93345048]
[1768654381376,1.94548527,143.69,143.67,8.93345048]
[1768654381553,4.02927436,143.69,143.67,8.93345048]
[1768654382083,1.94548527,143.69,143.67,8.93345048]
[1768654427918,4.02904974,143.69,143.67,8.93345048]
[1768654431118,1.94548527,143.69,143.67,8.93345048]
[1768654441626,4.1684251,143.7,143.67,8.93345048]
[1768654441805,5.20011728,143.69,143.67,8.93345048]
[1768654442004,4.1684251,143.7,143.67,8.93345048]
[1768654442227,5.2001021,143.69,143.67,8.93345048]
[1768654442406,4.1684251,143.7,143.67,8.93345048]
[1768654442610,5.20005711,143.69,143.67,8.93345048]
[1768654442908,4.1684251,143.7,143.67,8.93345048]
[1768654443205,5.20005701,143.69,143.67,8.93345048]
[1768654443408,4.1684251,143.7,143.67,8.93345048]
[1768654443597,5.20000457,143.69,143.67,8.93345048]
[1768654443803,4.1684251,143.7,143.67,8.93345048]
[1768654444101,5.20000457,143.69,143.67,8.93345048]
[1768654444302,4.1684251,143.7,143.67,8.93345048]
[1768654444625,5.19995681,143.69,143.67,8.93345048]
[1768654444828,4.1684251,143.7,143.67,8.93345048]
[1768654445126,5.19995681,143.69,143.67,8.93345048]
[1768654445321,4.1684251,143.7,143.67,8.93345048]
[1768654445522,5.19991233,143.69,143.67,1.97305513]
[1768654445731,4.1684251,143.7,143.67,1.97305513]
[1768654445901,5.19991106,143.69,143.67,1.97305513]
[1768654446102,4.1684251,143.7,143.67,1.97305513]
[1768654446302,5.20043841,143.69,143.67,1.97305513]
[1768654446510,4.1684251,143.7,143.67,8.93332734]
[1768654446727,5.20041605,143.69,143.67,8.93332734]
[1768654446912,4.1684251,143.7,143.67,8.93332734]
[1768654447111,5.20041036,143.69,143.67,8.93332734]
[1768654447312,4.1684251,143.7,143.67,8.93332734]
[1768654447512,5.20037442,143.69,143.67,8.93332734]
[1768654447721,4.1684251,143.7,143.67,8.93332734]
[1768654448020,5.20037885,143.69,143.67,8.93332734]
[1768654448214,4.1684251,143.7,143.67,8.93332734]
[1768654448512,5.20034674,143.69,143.67,8.93332734]
[1768654448712,4.1684251,143.7,143.67,8.93332734]
[1768654448912,5.20034801,143.69,143.67,8.93332734]
[1768654449121,4.1684251,143.7,143.67,8.93332734]
[1768654449319,5.20033355,143.69,143.67,8.93332734]
[1768654449521,4.1684251,143.7,143.67,8.93332734]
[1768654453119,2.08486063,143.7,143.67,8.93332734]
[1768654456922,2.08486063,143.72,143.68,2.03447414]
[1768654457113,5.20091339,143.71,143.68,2.03447414]
[1768654457313,4.1684251,143.72,143.68,2.03447414]
[1768654457634,5.19992078,143.71,143.68,2.03447414]
[1768654457823,4.1684251,143.72,143.68,8.99391779]
[1768654458031,5.19992078,143.71,143.69,2.03447414]
[1768654458216,4.1684251,143.72,143.69,2.03447414]
[1768654458416,5.19901917,143.71,143.69,2.03447414]
[1768654458618,4.1684251,143.72,143.69,2.03447414]
[1768654458835,5.19901791,143.71,143.69,2.03447414]
[1768654459020,4.1684251,143.72,143.69,2.03447414]
[1768654459212,5.19898011,143.71,143.69,2.03447414]
[1768654459413,2.08486063,143.71,143.69,2.03447414]
[1768654460939,4.1684251,143.71,143.68,2.03447414]
[1768654461128,11.12690661,143.71,143.68,2.03447414]
[1768654468745,9.04334214,143.71,143.68,2.03447414]
[1768654468926,11.12690661,143.71,143.68,2.03447414]
[1768654471126,9.04334214,143.71,143.68,2.03447414]
[1768654473651,2.08486063,143.71,143.68,8.99413055]
[1768654477354,6.95811159,143.72,143.69,2.15229642]
[1768654477555,5.19381469,143.71,143.69,2.15229642]
[1768654477855,8.93247188,143.72,143.69,2.15229642]
[1768654478042,5.19381342,143.71,143.69,2.15229642]
[1768654478237,8.93247188,143.72,143.69,2.15229642]
[1768654478445,7.1681413,143.71,143.69,2.15229642]
[1768654478637,1.97436029,143.71,143.69,2.15229642]
[1768654490864,11.01584029,143.71,143.68,2.15229642]
[1768654498609,8.93289115,143.71,143.68,2.15229642]
[1768654501093,1.99532128,143.7,143.68,2.15229642]
[1768654501295,1.37952504,143.7,143.68,2.15229642]
[1768654503808,1.99532128,143.71,143.68,6.95970011]
[1768654504003,1.99532128,143.71,143.69,1.9730073]
[1768654518043,1.99532128,143.7,143.68,1.9730073]
[1768654518234,1.99532128,143.7,143.67,8.93340265]
[1768654519032,1.99532128,143.7,143.67,6.96039535]
[1768654519233,5.20269399,143.69,143.68,1.9730073]
[1768654520237,1.99532128,143.7,143.68,1.9730073]
[1768654525649,11.11382518,143.71,143.68,1.9730073]
[1768654543785,5.20126566,143.7,143.68,1.9730073]
[1768654543974,11.11382518,143.71,143.68,1.9730073]
[1768654544175,5.20126566,143.7,143.68,1.9730073]
[1768654544375,11.11382518,143.71,143.68,1.9730073]
[1768654544676,5.20113053,143.7,143.68,1.9730073]
[1768654544877,11.11382518,143.71,143.68,1.9730073]
[1768654545078,5.20113053,143.7,143.68,1.9730073]
[1768654545286,11.11382518,143.71,143.68,1.9730073]
[1768654545476,5.20103256,143.7,143.68,1.9730073]
[1768654545675,11.11382518,143.71,143.68,1.9730073]
[1768654545878,5.20103256,143.7,143.68,1.9730073]
[1768654546086,11.11382518,143.71,143.68,1.9730073]
[1768654547307,11.11404362,143.71,143.68,1.9730073]
[1768654551992,5.20123735,143.7,143.68,1.9730073]
[1768654552173,11.11404362,143.71,143.68,1.9730073]
[1768654552474,5.20122341,143.7,143.68,1.9730073]
[1768654552676,11.11404362,143.71,143.68,1.9730073]
[1768654552987,5.2012823,143.7,143.68,1.9730073]
[1768654553172,9.03087604,143.71,143.68,1.9730073]
[1768654553374,5.20126939,143.7,143.68,1.9730073]
[1768654553592,11.11404362,143.71,143.68,1.9730073]
[1768654553791,5.20127066,143.7,143.68,1.9730073]
[1768654553986,11.11404362,143.71,143.68,1.9730073]
[1768654554186,5.20127066,143.7,143.68,1.9730073]
[1768654554390,11.11404362,143.71,143.68,1.9730073]
[1768654554574,5.20127287,143.7,143.68,1.9730073]
[1768654554775,11.11404362,143.71,143.68,1.9730073]
[1768654554986,5.2012716,143.7,143.68,1.9730073]
[1768654555177,9.03087604,143.71,143.68,1.9730073]
[1768654555389,5.20126443,143.7,143.68,1.9730073]
[1768654555589,9.03087604,143.71,143.68,1.9730073]
[1768654558201,11.11404362,143.71,143.68,1.9730073]
[1768654565201,5.20203151,143.7,143.68,1.9730073]
[1768654565498,11.11404362,143.71,143.68,1.9730073]
[1768654565796,5.20203278,143.7,143.68,1.9730073]
[1768654565997,9.03087604,143.71,143.68,1.9730073]
[1768654566200,5.20203278,143.7,143.68,1.9730073]
[1768654566491,9.03087604,143.71,143.68,1.9730073]
[1768654566678,5.20219037,143.7,143.68,1.9730073]
[1768654566879,9.03087604,143.71,143.68,1.9730073]
[1768654567179,5.20234627,143.7,143.68,1.9730073]
[1768654567381,9.03087604,143.71,143.68,1.9730073]
[1768654567678,5.20246908,143.7,143.68,1.9730073]
[1768654567879,9.03087604,143.71,143.68,1.9730073]
[1768654568094,5.20246908,143.7,143.68,1.9730073]
[1768654568300,9.03087604,143.71,143.68,1.9730073]
[1768654568596,5.20237993,143.7,143.68,1.9730073]
[1768654568902,9.03087604,143.71,143.68,1.9730073]
[1768654569102,5.2023812,143.7,143.68,1.9730073]
[1768654569304,9.03087604,143.71,143.68,1.9730073]
[1768654569597,5.20230178,143.7,143.68,1.9730073]
[1768654569825,9.03087604,143.71,143.68,1.9730073]
[1768654569985,5.20239358,143.7,143.68,1.9730073]
[1768654570186,9.03087604,143.71,143.68,1.9730073]
[1768654570384,5.20222963,143.7,143.68,1.9730073]
[1768654570587,9.03087604,143.71,143.68,1.9730073]
[1768654570802,5.20222963,143.7,143.68,1.9730073]
[1768654570984,9.03087604,143.71,143.68,1.9730073]
[1768654571184,5.20223089,143.7,143.68,1.9730073]
[1768654571399,9.03087604,143.71,143.68,1.9730073]
[1768654571603,5.20216978,143.7,143.68,1.9730073]
[1768654571900,9.03087604,143.71,143.68,1.9730073]
[1768654572107,5.20217105,143.7,143.68,1.9730073]
[1768654572280,9.03087604,143.71,143.68,1.9730073]
[1768654572480,5.20211555,143.7,143.68,1.9730073]
[1768654572780,9.03087604,143.71,143.68,1.9730073]
[1768654572980,5.20211429,143.7,143.68,1.9730073]
[1768654573197,9.03087604,143.71,143.68,1.9730073]
[1768654573501,5.2020654,143.7,143.68,1.9730073]
[1768654573694,9.03087604,143.71,143.68,1.9730073]
[1768654573896,5.20197663,143.7,143.68,1.9730073]
[1768654574098,9.03087604,143.71,143.68,1.9730073]
[1768654574307,5.20198823,143.7,143.68,1.9730073]
[1768654574482,9.03087604,143.71,143.68,1.9730073]
[1768654574682,5.2019741,143.7,143.68,1.9730073]
[1768654574895,9.03087604,143.71,143.68,1.9730073]
[1768654575187,5.20203301,143.7,143.68,1.9730073]
[1768654575488,9.03087604,143.71,143.68,1.9730073]
[1768654575806,5.20199888,143.7,143.68,1.9730073]
[1768654576001,9.03087604,143.71,143.68,1.9730073]
[1768654576201,5.20199761,143.7,143.68,1.9730073]
[1768654576404,9.03087604,143.71,143.68,1.9730073]
[1768654576595,5.20196988,143.7,143.68,1.9730073]
[1768654576797,9.03087604,143.71,143.68,1.9730073]
[1768654576986,5.20191097,143.7,143.68,1.9730073]
[1768654577189,9.03087604,143.71,143.68,1.9730073]
[1768654577403,5.20188503,143.7,143.68,1.9730073]
[1768654577588,9.03087604,143.71,143.68,1.9730073]
[1768654577887,5.20188629,143.7,143.68,1.9730073]
[1768654578188,9.03087604,143.71,143.68,1.9730073]
[1768654578387,5.20186625,143.7,143.68,1.9730073]
[1768654578685,9.03087604,143.71,143.68,1.9730073]
[1768654578893,5.20192388,143.7,143.68,1.9730073]
[1768654579085,9.03087604,143.71,143.68,1.9730073]
[1768654579295,5.20192388,143.7,143.68,1.9730073]
[1768654579482,9.03087604,143.71,143.68,1.9730073]
[1768654579705,5.2018528,143.7,143.68,1.9730073]
[1768654579905,9.03087604,143.71,143.68,1.9730073]
[1768654580106,5.2017863,143.7,143.68,1.9730073]
[1768654580405,9.03087604,143.71,143.68,1.9730073]
[1768654580606,5.20177587,143.7,143.68,1.9730073]
[1768654580808,9.03087604,143.71,143.68,1.9730073]
[1768654580993,5.20177144,143.7,143.68,1.9730073]
[1768654581195,9.03087604,143.71,143.68,1.9730073]
[1768654581395,5.20176574,143.7,143.68,1.9730073]
[1768654581692,9.03087604,143.71,143.68,1.9730073]
[1768654581894,5.20176448,143.7,143.68,1.9730073]
[1768654582106,9.03087604,143.71,143.68,1.9730073]
[1768654582308,5.20176246,143.7,143.68,1.9730073]
[1768654582500,9.03087604,143.71,143.68,1.9730073]
[1768654582700,5.20176623,143.7,143.68,1.9730073]
[1768654583018,9.03087604,143.71,143.68,1.9730073]
[1768654583216,5.20176496,143.7,143.68,1.9730073]
[1768654583515,9.03087604,143.71,143.68,1.9730073]
[1768654583720,5.20188655,143.7,143.68,1.9730073]
[1768654583900,9.03087604,143.71,143.68,1.9730073]
[1768654584102,5.20188655,143.7,143.68,1.9730073]
[1768654584302,9.03087604,143.71,143.68,1.9730073]
[1768654584501,5.2018372,143.7,143.68,1.9730073]
[1768654584838,9.03087604,143.71,143.68,1.9730073]
[1768654585009,5.20183593,143.7,143.68,1.9730073]
[1768654585198,9.03087604,143.71,143.68,1.9730073]
[1768654585397,5.20185026,143.7,143.68,1.9730073]
[1768654585598,9.03087604,143.71,143.68,1.9730073]
[1768654585799,5.20179263,143.7,143.68,1.9730073]
[1768654586117,9.03087604,143.71,143.68,1.9730073]
[1768654586310,5.20180032,143.7,143.68,1.9730073]
[1768654586615,9.03087604,143.71,143.68,1.9730073]
[1768654586795,5.20180928,143.7,143.68,1.9730073]
[1768654586998,9.03087604,143.71,143.68,1.9730073]
[1768654587197,5.20181055,143.7,143.68,1.9730073]
[1768654587496,9.03087604,143.71,143.68,1.9730073]
[1768654587719,5.20183461,143.7,143.68,1.9730073]
[1768654587901,9.03087604,143.71,143.68,1.9730073]
[1768654588104,5.20183334,143.7,143.68,1.9730073]
[1768654588304,9.03087604,143.71,143.68,1.9730073]
[1768654588527,5.20186257,143.7,143.68,1.9730073]
[1768654588822,9.03087604,143.71,143.68,1.9730073]
[1768654589122,5.20186257,143.7,143.68,1.9730073]
[1768654589306,9.03087604,143.71,143.68,1.9730073]
[1768654589494,5.20191187,143.7,143.68,1.9730073]
[1768654589701,28.53501287,143.72,143.69,2.13924288]
[1768654589902,5.20202642,143.71,143.69,2.13924288]
[1768654590104,5.20202642,143.7,143.69,2.13924288]
[1768654590999,5.20046865,143.7,143.69,2.13924288]
[1768654594522,19.49372138,143.72,143.69,9.09866942]
[1768654594725,5.20076382,143.71,143.69,9.09866942]
[1768654594925,4.1825716,143.72,143.69,9.09866942]
[1768654595226,5.20077273,143.71,143.69,9.09866942]
[1768654595426,4.1825716,143.72,143.69,9.09866942]
[1768654595628,5.2006861,143.71,143.69,9.09866942]
[1768654595922,2.09940402,143.72,143.69,9.09866942]
[1768654596101,5.20086877,143.71,143.69,9.09866942]
[1768654596301,4.1825716,143.72,143.69,9.09866942]
[1768654596527,5.20012885,143.71,143.69,9.09866942]
[1768654596727,4.1825716,143.72,143.69,9.09866942]
[1768654597027,5.20013021,143.71,143.69,9.09866942]
[1768654597211,4.1825716,143.72,143.69,9.09866942]
[1768654597413,2.09940402,143.72,143.69,9.09866942]
[1768654597726,4.1825716,143.72,143.69,9.09866942]
[1768654601934,4.08658796,143.71,143.68,9.10710645]
[1768654607359,4.08649687,143.71,143.68,9.10710645]
[1768654609734,2.00342038,143.71,143.68,9.10710645]
[1768654624553,8.96190673,143.71,143.68,2.14740779]
[1768654624745,2.00342038,143.71,143.68,2.14740779]
[1768654626854,2.00342038,143.71,143.68,9.10717741]
[1768654630657,2.00342038,143.71,143.65,32.64316989]
[1768654630658,2.15937726,143.7,143.66,9.05713845]
[1768654631026,4.24245375,143.7,143.66,9.05713845]
[1768654632358,11.20160969,143.7,143.66,9.05713845]
[1768654632550,26.44160969,143.7,143.66,9.05713845]
[1768654638967,2.15937726,143.69,143.66,9.05713845]
[1768654639152,2.12937726,143.69,143.66,2.09658039]
[1768654639472,2.08307649,143.68,143.65,2.09658039]
[1768654640262,9.04274162,143.69,143.65,2.09658039]
[1768654641176,2.15937726,143.68,143.65,2.09658039]
[1768654642772,2.15937726,143.68,143.65,9.05777969]
[1768654643370,2.15937726,143.68,143.65,6.9611993]
[1768654643547,9.06757374,143.69,143.66,2.1849649]
[1768654647765,2.10790861,143.69,143.66,9.14584157]
[1768654648371,2.10790861,143.69,143.67,2.1849649]
[1768654652075,2.10790861,143.69,143.66,2.11266256]
[1768654652673,4.1909851,143.69,143.66,2.11266256]
[1768654653476,2.10790861,143.69,143.66,2.11266256]
[1768654653679,4.1909851,143.69,143.66,2.11266256]
[1768654664786,2.10790861,143.69,143.66,2.11266256]
[1768654666688,4.1909851,143.69,143.66,2.11266256]
[1768654667289,4.19149112,143.69,143.66,2.11266256]
[1768654673992,2.10790861,143.69,143.66,2.11266256]
[1768654674189,4.19149112,143.69,143.66,2.11266256]
[1768654675992,2.10790861,143.69,143.66,2.11266256]
[1768654676191,4.19149112,143.69,143.66,2.11266256]
[1768654678100,2.10790861,143.69,143.66,2.11266256]
[1768654678398,4.19149112,143.69,143.66,2.11266256]
[1768654678592,24.3132134,143.7,143.67,1.99732471]
[1768654678899,5.20129397,143.69,143.67,1.99732471]
[1768654679091,2.08358251,143.69,143.67,1.99732471]
[1768654685006,26.39679591,143.7,143.67,1.99732471]
[1768654687208,2.11408842,143.69,143.66,6.9605469]
[1768654687506,2.11408842,143.69,143.66,8.95787161]
[1768654688107,4.19767093,143.69,143.66,8.95787161]
[1768654688502,4.19767093,143.69,143.67,1.99732471]
[1768654690896,11.15728741,143.69,143.66,1.99732471]
[1768654692991,28.55421758,143.69,143.66,1.99732471]
[1768654719728,19.51101859,143.69,143.66,1.99732471]
[1768654720119,2.11408842,143.69,143.66,1.99732471]
[1768654721737,30.67589705,143.7,143.67,2.14828942]
[1768654721923,23.71675484,143.7,143.67,2.14828942]
[1768654728635,30.67573537,143.7,143.67,2.14828942]
[1768654729446,30.67558181,143.7,143.67,2.14828942]
[1768654738849,28.59215286,143.7,143.67,2.14828942]
[1768654741359,19.51101859,143.7,143.68,2.10313249]
[1768654741529,9.12646774,143.72,143.69,2.10313249]
[1768654741845,5.19897581,143.71,143.69,2.10313249]
[1768654742052,11.20989669,143.72,143.69,2.10313249]
[1768654742255,2.16829307,143.7,143.68,17.40150892]
[1768654742434,4.25172202,143.7,143.67,2.10313249]
[1768654742626,2.16829307,143.69,143.66,2.10313249]
[1768654742825,4.25172202,143.69,143.67,7.28230685]
[1768654743069,4.25172202,143.69,143.66,2.10313249]
[1768654743240,2.16829307,143.69,143.66,22.98359186]
[1768654744551,2.13829305,143.69,143.66,22.98359186]
[1768654747157,2.13829305,143.69,143.66,2.10313249]
[1768654748965,2.13829305,143.69,143.66,9.06399916]
[1768654761967,1.96108838,143.68,143.64,12.72427001]
[1768654762154,1.93108838,143.68,143.64,27.96427001]
[1768654762358,1.93108838,143.68,143.64,24.34067727]